fUST/lending_fUST_20251223
["ID","MTS","AMOUNT","RATE_DAILY","PERIOD"]
[399517569,1766427752813,5000.0,6.974e-05,2]
[399517570,1766427775175,4601.68282527,6.974e-05,2]
[399517571,1766427775199,398.31717473,6.974e-05,2]
[399517572,1766427797895,2478.63631809,6.974e-05,2]
[399517573,1766427831244,462.69081587,6.942e-05,2]
[399517574,1766427907551,207.18818235,6.941e-05,2]
[399517575,1766427970237,167.609284,6.471e-05,2]
[399517578,1766428035857,207.18818235,6.941e-05,2]
[399517594,1766428231707,-188.27987331,7.042e-05,2]
[399517595,1766428231718,-520.0,7.042e-05,2]
[399517596,1766428231727,-300.0,7.094e-05,2]
[399517597,1766428231738,-1200.0,7.094e-05,2]
[399517598,1766428231748,-305.54207809,7.095e-05,2]
[399517599,1766428231758,-349.19094639,7.095e-05,2]
[399517600,1766428231768,-178.11850701,7.095e-05,2]
[399517601,1766428231777,-320.61331261,7.095e-05,2]
[399517602,1766428231787,-569.97922242,7.095e-05,2]
[399517603,1766428231797,-890.59253503,7.095e-05,2]
[399517604,1766428231807,-200.0477769,7.275e-05,2]
[399517605,1766428231816,-500.0,7.466e-05,2]
[399517607,1766428231826,-499.81634038,7.466e-05,2]
[399517609,1766428231835,-156.63906555,7.466e-05,2]
[399517611,1766428231845,-50000.0,7.467e-05,2]
[399517613,1766428231857,-1540.4380568,7.557e-05,2]
[399517615,1766428231867,-191.92539384,7.557e-05,2]
[399517631,1766428232022,-2201.38511466,7.657e-05,2]
[399517633,1766428232033,-1524.5428617,7.671e-05,2]
[399517635,1766428232043,-2201.38511466,7.807e-05,2]
[399517637,1766428232052,-150.0,7.832e-05,2]
[399517639,1766428232061,-191.92539382,7.928e-05,2]
[399517641,1766428232071,-150.0,8.165e-05,2]
[399517643,1766428232080,-2201.38511466,8.174e-05,2]
[399517645,1766428232089,-195.45054971,8.219e-05,2]
[399517647,1766428232098,-191.92539382,8.299e-05,2]
[399517649,1766428232107,-2201.38511467,8.486e-05,2]
[399517651,1766428232117,-3073.68305571,8.558e-05,2]
[399517653,1766428232126,-4087.2883306,8.56e-05,2]
[399517655,1766428232135,-1074.45646333,8.569e-05,2]
[399517657,1766428232147,-1716.36479467,8.569e-05,2]
[399517659,1766428232156,-193.61081899,8.569e-05,2]
[399517661,1766428232165,-31.23939841,8.578e-05,2]
[399517746,1766428238223,-128.84060159,8.578e-05,2]
[399517747,1766428238232,-8047.9624747,8.628e-05,2]
[399517748,1766428238243,-191.92539382,8.67e-05,2]
[399517749,1766428238252,-1271.8619481,8.914e-05,2]
[399517750,1766428238262,-213.43,8.951e-05,2]
[399517751,1766428238271,-15576.80891925,9e-05,10]
[399517752,1766428238288,-706.64386769,9e-05,10]
[399517753,1766428238300,-8017.88949958,9e-05,10]
[399517774,1766428240052,-426.13638038,9e-05,10]
[399517915,1766428242933,-1894.19750275,9e-05,10]
[399517916,1766428242944,-968.6749,9e-05,10]
[399517917,1766428243094,-10205.40491608,9e-05,10]
[399517918,1766428243105,-777.17506577,9e-05,10]
[399517924,1766428245928,-77769.13963028,9e-05,10]
[399517969,1766429006611,10000.0,1e-05,2]
[399517986,1766429218381,150.0,0.00010329,30]
[399517987,1766429218770,150.0,0.00010821,30]
[399517988,1766429219172,150.0,0.00011313,30]
[399517989,1766429219573,150.0,0.00011805,30]
[399517990,1766429219963,150.0,0.00012297,30]
[399518127,1766429437955,-5000.0,7.336e-05,2]
[399518129,1766429437965,-524.0,7.336e-05,2]
[399518131,1766429437974,-187.51427585,7.373e-05,2]
[399518133,1766429437983,-3191.931941,7.485e-05,2]
[399518135,1766429437992,-2682.45796913,7.736e-05,2]
[399518139,1766429438018,-314.83012625,7.736e-05,2]
[399518183,1766429440165,-3782.45952532,7.736e-05,2]
[399518184,1766429440176,-461.1944,8.219e-05,2]
[399518185,1766429440185,-150.0,8.396e-05,2]
[399518186,1766429440195,-1201.5929232,8.415e-05,2]
[399518187,1766429440207,-150.0,8.804e-05,2]
[399518188,1766429440217,-500.0,8.996e-05,2]
[399518190,1766429440226,-199.87143827,8.996e-05,2]
[399518193,1766429440236,-20874.38619321,8.997e-05,2]
[399518570,1766429446263,-29125.61380679,8.997e-05,2]
[399518571,1766429446275,-149996.46696961,9e-05,10]
[399518618,1766429840615,1450.0,0.0001,30]
[399518619,1766429840642,2500.0,0.0001,30]
[399518620,1766429840667,2500.0,0.0001,30]
[399518621,1766429840692,2500.0,0.0001,30]
[399518622,1766429840719,2500.0,0.0001,30]
[399518623,1766429840744,2500.0,0.0001,30]
[399518624,1766429840771,2500.0,0.0001,30]
[399518625,1766429840796,2500.0,0.0001,30]
[399518626,1766429840820,2500.0,0.0001,30]
[399518627,1766429840844,121795.75436866,0.0001,30]
[399518628,1766429840867,100000.0,0.0001,30]
[399518629,1766429840889,93479.28210058,0.0001,30]
[399518683,1766430632953,-5000.0,7.576e-05,2]
[399518684,1766430632985,-313.19223894,7.585e-05,2]
[399518685,1766430633007,-614.0,7.651e-05,2]
[399518686,1766430633017,-300.0,7.651e-05,2]
[399518687,1766430633026,-295.90285677,7.652e-05,2]
[399518688,1766430633036,-338.17469345,7.652e-05,2]
[399518689,1766430633045,-278.43705976,7.652e-05,2]
[399518690,1766430633054,-318.21378258,7.652e-05,2]
[399518691,1766430633063,-497.20903528,7.652e-05,2]
[399518692,1766430633073,-83.56644075,7.652e-05,2]
[399518693,1766430633086,-115.74486967,7.652e-05,2]
[399518694,1766430633096,-186.20661112,7.84e-05,2]
[399518695,1766430633105,-500.0,7.918e-05,2]
[399518696,1766430633114,-246.32732627,7.918e-05,2]
[399518697,1766430633125,-303.97497196,7.918e-05,2]
[399518698,1766430633134,-388.77101953,7.919e-05,2]
[399518715,1766430638530,-407.11908277,7.919e-05,2]
[399518716,1766430638544,-8673.52039982,7.919e-05,2]
[399518717,1766430638567,-40530.58949788,7.919e-05,2]
[399518718,1766430638578,-500.0,7.919e-05,2]
[399518719,1766430638588,-500.0,7.919e-05,2]
[399518720,1766430638597,-500.0,7.919e-05,2]
[399518721,1766430638607,-500.0,7.919e-05,2]
[399518722,1766430638617,-186.83633666,7.919e-05,2]
[399518723,1766430638628,-168.05253105,7.984e-05,2]
[399518724,1766430638638,-302.49455589,7.984e-05,2]
[399518725,1766430638648,-537.76809937,7.984e-05,2]
[399518726,1766430638658,-840.26265526,7.984e-05,2]
[399518727,1766430638668,-284.72026234,7.984e-05,2]
[399518728,1766430638678,-325.39458553,7.984e-05,2]
[399518729,1766430638688,-163.24904305,7.989e-05,2]
[399518730,1766430638698,-740.10545373,8.055e-05,2]
[399518731,1766430638708,-150.0,8.139e-05,2]
[399518732,1766430638717,-420.0,8.417e-05,2]
[399518733,1766430638727,-337.09352693,8.52e-05,2]
[399518734,1766430638737,-150.0,8.527e-05,2]
[399518735,1766430638747,-385.24974506,8.724e-05,2]
[399518736,1766430638757,-740.10545372,8.781e-05,2]
[399518737,1766430638769,-299.76169585,8.913e-05,2]
[399518738,1766430638779,-150.0,8.915e-05,2]
[399518739,1766430638789,-601.95272665,8.927e-05,2]
[399518740,1766430638800,-191.60021665,9.047e-05,2]
[399518741,1766430638810,-2271.77318909,9.084e-05,2]
[399518742,1766430638820,-150.0,9.205e-05,2]
[399518743,1766430638829,-587.0,9.258e-05,2]
[399518744,1766430638840,-281.62419279,9.341e-05,2]
[399518745,1766430638850,-2271.77318909,9.342e-05,2]
[399518746,1766430638860,-344.53550959,9.454e-05,2]
[399518747,1766430638871,-20000.0,9.494e-05,2]
[399518748,1766430638881,-553.64373807,9.494e-05,2]
[399518749,1766430638891,-500.0,9.494e-05,2]
[399518750,1766430638901,-500.0,9.494e-05,2]
[399518751,1766430638911,-500.0,9.494e-05,2]
[399518752,1766430638920,-500.0,9.494e-05,2]
[399518753,1766430638930,-500.0,9.494e-05,2]
[399518754,1766430638939,-500.0,9.494e-05,2]
[399518755,1766430638949,-500.0,9.494e-05,2]
[399518756,1766430638961,-500.0,9.494e-05,2]
[399518757,1766430638971,-500.0,9.494e-05,2]
[399518758,1766430638982,-500.0,9.494e-05,2]
[399518759,1766430638992,-500.0,9.494e-05,2]
[399518760,1766430639002,-500.0,9.494e-05,2]
[399518761,1766430639013,-740.10545372,9.507e-05,2]
[399518762,1766430639026,-345.88683209,9.584e-05,4]
[399518763,1766430639036,-159.1,9.69e-05,2]
[399518764,1766430639046,-219.72380112,9.84e-05,2]
[399518765,1766430639055,-157.3693817,9.849e-05,2]
[399518766,1766430639066,-171.46926119,9.873e-05,2]
[399518767,1766430639076,-913.33182354,0.0001,2]
[399518768,1766430639086,-574.12855637,0.00010042,2]
[399518769,1766430639096,-483.90180371,0.00010046,2]
[399518770,1766430639105,-159.70962581,0.00010046,2]
[399518771,1766430639114,-190.92,0.00010077,2]
[399518772,1766430639123,-740.10545372,0.00010132,2]
[399518773,1766430639132,-793.0,0.00010184,2]
[399518774,1766430639142,-222.74,0.00010465,2]
[399518775,1766430639152,-202.66847732,0.00010506,2]
[399518776,1766430639162,-1041.66666667,0.0001058,2]
[399518777,1766430639172,-601.91790916,0.0001059,2]
[399518778,1766430639182,-1352.64064045,0.00010719,2]
[399518779,1766430639192,-25000.0,0.000108,2]
[399518780,1766430639202,-151.0,0.000108,2]
[399518781,1766430639211,-254.57,0.00010853,2]
[399518782,1766430639221,-740.10545372,0.00010858,2]
[399518783,1766430639231,-10000.0,0.00010858,2]
[399518784,1766430639240,-151.0,0.00010863,2]
[399518785,1766430639249,-16549.00630451,0.00010863,2]
[399518786,1766430639259,-3506.86369878,0.00010958,2]
[399518787,1766430639527,-170.536017,0.00010958,2]
[399518788,1766430639540,-1730.145031,0.00010958,2]
[399518789,1766430639550,-500.0,0.00010958,2]
[399518790,1766430639560,-500.0,0.00010958,2]
[399518791,1766430639569,-500.0,0.00010958,2]
[399518792,1766430639579,-500.0,0.00010958,2]
[399518793,1766430639589,-357.06590711,0.00010958,2]
[399518794,1766430639599,-500.0,0.00010958,2]
[399518795,1766430639610,-500.0,0.00010958,2]
[399518796,1766430639619,-500.0,0.00010958,2]
[399518797,1766430639629,-500.0,0.00010958,2]
[399518798,1766430639638,-500.0,0.00010958,2]
[399518799,1766430639646,-500.0,0.00010958,2]
[399518800,1766430639656,-354.13157711,0.00010958,2]
[399518801,1766430639665,-1109.38,0.00010958,2]
[399518802,1766430639675,-1355.09,0.00010958,2]
[399518803,1766430639684,-500.0,0.00010958,2]
[399518805,1766430639694,-813.62,0.00010958,2]
[399518806,1766430639703,-500.0,0.00010958,2]
[399518807,1766430639713,-500.0,0.00010958,2]
[399518808,1766430639723,-500.0,0.00010958,2]
[399518809,1766430639732,-500.0,0.00010958,2]
[399518810,1766430639741,-500.0,0.00010958,2]
[399518811,1766430639751,-500.0,0.00010958,2]
[399518812,1766430639760,-500.0,0.00010958,2]
[399518813,1766430639771,-579.26,0.00010958,2]
[399518814,1766430639781,-500.0,0.00010958,2]
[399518815,1766430639791,-541.07,0.00010958,2]
[399518816,1766430639800,-2593.71,0.00010958,2]
[399518817,1766430639810,-547.26,0.00010958,2]
[399518818,1766430639820,-500.0,0.00010958,2]
[399518819,1766430639830,-500.0,0.00010958,2]
[399518820,1766430639840,-1924.02,0.00010958,2]
[399518821,1766430639849,-1525.14,0.00010958,2]
[399518823,1766430639859,-500.0,0.00010958,2]
[399518824,1766430639868,-500.0,0.00010958,2]
[399518825,1766430639877,-500.0,0.00010958,2]
[399518826,1766430639887,-500.0,0.00010958,2]
[399518827,1766430639897,-500.0,0.00010958,2]
[399518828,1766430639907,-500.0,0.00010958,2]
[399518829,1766430639917,-500.0,0.00010958,2]
[399518830,1766430639927,-500.0,0.00010958,2]
[399518831,1766430639937,-633.71,0.00010958,2]
[399518832,1766430639946,-861.22,0.00010958,2]
[399518833,1766430639957,-500.0,0.00010958,2]
[399518834,1766430639967,-500.0,0.00010958,2]
[399518835,1766430639977,-500.0,0.00010958,2]
[399518836,1766430639987,-1050.66,0.00010958,2]
[399518837,1766430639997,-500.0,0.00010958,2]
[399518838,1766430640007,-500.0,0.00010958,2]
[399518839,1766430640017,-500.0,0.00010958,2]
[399518840,1766430640026,-500.0,0.00010958,2]
[399518842,1766430640036,-500.0,0.00010958,2]
[399518844,1766430640046,-500.0,0.00010958,2]
[399518846,1766430640056,-1408.35,0.00010958,2]
[399518848,1766430640065,-500.0,0.00010958,2]
[399518849,1766430640074,-575.43,0.00010958,2]
[399518850,1766430640084,-500.0,0.00010958,2]
[399518851,1766430640093,-500.0,0.00010958,2]
[399518852,1766430640103,-500.0,0.00010958,2]
[399518853,1766430640113,-2085.35,0.00010958,2]
[399518854,1766430640123,-1387.83,0.00010958,2]
[399518855,1766430640132,-500.0,0.00010958,2]
[399518856,1766430640142,-456.36425125,0.00010958,2]
[399518857,1766430640151,-1091.38,0.00010958,2]
[399518858,1766430640160,-500.0,0.00010958,2]
[399518859,1766430640169,-1240.51,0.00010958,2]
[399518860,1766430640178,-506.48666426,0.00010958,2]
[399518861,1766430640188,-500.0,0.00010958,2]
[399518862,1766430640197,-2921.1,0.00010958,2]
[399518863,1766430640207,-500.0,0.00010958,2]
[399518864,1766430640217,-500.0,0.00010958,2]
[399518865,1766430640226,-500.0,0.00010958,2]
[399518866,1766430640235,-500.0,0.00010958,2]
[399518867,1766430640245,-503.78069221,0.00010958,2]
[399518868,1766430640254,-500.0,0.00010958,2]
[399518869,1766430640264,-500.0,0.00010958,2]
[399518871,1766430640274,-500.0,0.00010958,2]
[399518873,1766430640284,-652.39,0.00010958,2]
[399518874,1766430640294,-500.0,0.00010958,2]
[399518875,1766430640304,-500.0,0.00010958,2]
[399518876,1766430640314,-500.0,0.00010958,2]
[399518877,1766430640323,-1714.63,0.00010958,2]
[399518878,1766430640333,-500.0,0.00010958,2]
[399518879,1766430640343,-565.44,0.00010958,2]
[399518880,1766430640352,-313.14092484,0.00010958,2]
[399518881,1766430640362,-500.0,0.00010958,2]
[399518882,1766430640371,-874.05,0.00010958,2]
[399518883,1766430640380,-500.0,0.00010958,2]
[399518884,1766430640390,-500.0,0.00010958,2]
[399518885,1766430640399,-500.0,0.00010958,2]
[399518886,1766430640409,-500.0,0.00010958,2]
[399518887,1766430640418,-606.56812948,0.00010958,2]
[399518888,1766430640427,-1420.76,0.00010958,2]
[399518889,1766430640437,-546.64,0.00010958,2]
[399518890,1766430640447,-500.0,0.00010958,2]
[399518891,1766430640456,-1548.94,0.00010958,2]
[399518892,1766430640465,-1206.24,0.00010958,2]
[399518893,1766430640475,-500.0,0.00010958,2]
[399518894,1766430640485,-500.0,0.00010958,2]
[399518895,1766430640495,-1308.29,0.00010958,2]
[399518896,1766430640504,-655.45,0.00010958,2]
[399518897,1766430640514,-500.0,0.00010958,2]
[399518898,1766430640524,-500.0,0.00010958,2]
[399518899,1766430640534,-500.0,0.00010958,2]
[399518900,1766430640548,-500.0,0.00010958,2]
[399518901,1766430640558,-521.4,0.00010958,2]
[399518902,1766430640568,-500.0,0.00010958,2]
[399518903,1766430640579,-500.0,0.00010958,2]
[399518904,1766430640589,-500.0,0.00010958,2]
[399518905,1766430640598,-1042.53,0.00010958,2]
[399518906,1766430640607,-719.52,0.00010958,2]
[399518907,1766430640618,-500.0,0.00010958,2]
[399518908,1766430640627,-500.0,0.00010958,2]
[399518909,1766430640637,-500.0,0.00010958,2]
[399518910,1766430640646,-500.0,0.00010958,2]
[399518911,1766430640656,-601.87,0.00010958,2]
[399518912,1766430640666,-500.0,0.00010958,2]
[399518913,1766430640676,-511.77,0.00010958,2]
[399518914,1766430640686,-500.0,0.00010958,2]
[399518915,1766430640696,-500.0,0.00010958,2]
[399518916,1766430640706,-500.0,0.00010958,2]
[399518917,1766430640715,-500.59,0.00010958,2]
[399518918,1766430640725,-500.0,0.00010958,2]
[399518919,1766430640734,-937.17,0.00010958,2]
[399518920,1766430640743,-500.0,0.00010958,2]
[399518921,1766430640754,-500.0,0.00010958,2]
[399518922,1766430640763,-500.0,0.00010958,2]
[399518923,1766430640773,-852.16,0.00010958,2]
[399518924,1766430640784,-500.0,0.00010958,2]
[399518925,1766430640793,-680.23,0.00010958,2]
[399518926,1766430640803,-500.0,0.00010958,2]
[399518927,1766430640812,-514.7260911,0.00010958,2]
[399518928,1766430640823,-500.0,0.00010958,2]
[399518929,1766430640832,-500.0,0.00010958,2]
[399518930,1766430640842,-500.0,0.00010958,2]
[399518931,1766430640851,-698.8,0.00010958,2]
[399518932,1766430640861,-1581.45,0.00010958,2]
[399518933,1766430640872,-500.0,0.00010958,2]
[399518934,1766430640882,-509.96505564,0.00010958,2]
[399518935,1766430640898,-500.0,0.00010958,2]
[399518936,1766430640917,-500.0,0.00010958,2]
[399518937,1766430640927,-643.11,0.00010958,2]
[399518938,1766430640936,-500.0,0.00010958,2]
[399518939,1766430640945,-500.0,0.00010958,2]
[399518940,1766430640955,-500.0,0.00010958,2]
[399518941,1766430640965,-500.0,0.00010958,2]
[399518942,1766430640974,-524.16126544,0.00010958,2]
[399518943,1766430640984,-1037.95,0.00010958,2]
[399518944,1766430640994,-500.0,0.00010958,2]
[399518945,1766430641003,-506.34,0.00010958,2]
[399518946,1766430641012,-500.0,0.00010958,2]
[399518947,1766430641023,-500.0,0.00010958,2]
[399518948,1766430641032,-624.17,0.00010958,2]
[399518949,1766430641042,-1125.93,0.00010958,2]
[399518950,1766430641051,-845.36,0.00010958,2]
[399518951,1766430641060,-1716.59,0.00010958,2]
[399518952,1766430641071,-669.39,0.00010958,2]
[399518953,1766430641080,-500.0,0.00010958,2]
[399518954,1766430641090,-500.0,0.00010958,2]
[399518955,1766430641099,-500.0,0.00010958,2]
[399518956,1766430641109,-500.0,0.00010958,2]
[399518957,1766430641118,-500.0,0.00010958,2]
[399518958,1766430641127,-500.0,0.00010958,2]
[399518959,1766430641137,-638.48,0.00010958,2]
[399518960,1766430641146,-500.0,0.00010958,2]
[399518961,1766430641155,-908.87,0.00010958,2]
[399518962,1766430641165,-2650.1,0.00010958,2]
[399518963,1766430641174,-164.45722592,0.00010958,2]
[399518964,1766430641183,-500.0,0.00010958,2]
[399518965,1766430641193,-500.0,0.00010958,2]
[399518966,1766430641202,-1021.82,0.00010958,2]
[399518967,1766430641212,-500.0,0.00010958,2]
[399518968,1766430641221,-1909.02,0.00010958,2]
[399518969,1766430641230,-1053.03,0.00010958,2]
[399518970,1766430641239,-500.0,0.00010958,2]
[399518971,1766430641249,-500.0,0.00010958,2]
[399518972,1766430641258,-500.0,0.00010958,2]
[399518973,1766430641269,-689.79,0.00010958,2]
[399518974,1766430641279,-930.06,0.00010958,2]
[399518975,1766430641288,-500.0,0.00010958,2]
[399518976,1766430641298,-1149.11,0.00010958,2]
[399518977,1766430641307,-500.0,0.00010958,2]
[399518978,1766430641316,-500.0,0.00010958,2]
[399518979,1766430641326,-992.13,0.00010958,2]
[399518980,1766430641336,-500.0,0.00010958,2]
[399518981,1766430641346,-500.0,0.00010958,2]
[399518982,1766430641356,-500.0,0.00010958,2]
[399518983,1766430641366,-500.0,0.00010958,2]
[399518984,1766430641376,-824.06,0.00010958,2]
[399518985,1766430641386,-500.0,0.00010958,2]
[399518986,1766430641395,-500.0,0.00010958,2]
[399518987,1766430641405,-521.76,0.00010958,2]
[399518988,1766430641414,-500.0,0.00010958,2]
[399518989,1766430641423,-1488.1,0.00010958,2]
[399518990,1766430641433,-500.0,0.00010958,2]
[399518991,1766430641442,-500.0,0.00010958,2]
[399518992,1766430641452,-500.0,0.00010958,2]
[399518993,1766430641461,-500.0,0.00010958,2]
[399518994,1766430641472,-419.49873127,0.00010958,2]
[399518995,1766430641481,-500.0,0.00010958,2]
[399518996,1766430641491,-500.0,0.00010958,2]
[399518997,1766430641501,-1169.46,0.00010958,2]
[399518998,1766430641510,-2788.89,0.00010958,2]
[399518999,1766430641521,-747.61,0.00010958,2]
[399519000,1766430641530,-500.0,0.00010958,2]
[399519001,1766430641539,-500.0,0.00010958,2]
[399519002,1766430641552,-998.54,0.00010958,2]
[399519003,1766430641561,-500.0,0.00010958,2]
[399519004,1766430641571,-500.0,0.00010958,2]
[399519005,1766430641580,-2732.86,0.00010958,2]
[399519006,1766430641591,-542.96,0.00010958,2]
[399519007,1766430641600,-500.0,0.00010958,2]
[399519008,1766430641610,-500.0,0.00010958,2]
[399519009,1766430641621,-761.01,0.00010958,2]
[399519010,1766430641632,-3394.8,0.00010958,2]
[399519011,1766430641642,-2807.2,0.00010958,2]
[399519012,1766430641653,-500.0,0.00010958,2]
[399519013,1766430641662,-500.0,0.00010958,2]
[399519014,1766430641672,-500.0,0.00010958,2]
[399519015,1766430641682,-2800.71,0.00010958,2]
[399519016,1766430641692,-500.0,0.00010958,2]
[399519017,1766430641701,-2109.3,0.00010958,2]
[399519018,1766430641710,-948.02,0.00010958,2]
[399519019,1766430641720,-500.0,0.00010958,2]
[399519020,1766430641730,-1800.29,0.00010958,2]
[399519021,1766430641739,-500.0,0.00010958,2]
[399519022,1766430641748,-500.0,0.00010958,2]
[399519023,1766430641758,-521.85,0.00010958,2]
[399519024,1766430641767,-1039.85,0.00010958,2]
[399519025,1766430641777,-500.0,0.00010958,2]
[399519026,1766430641786,-500.0,0.00010958,2]
[399519027,1766430641795,-464.10391494,0.00010958,2]
[399519028,1766430641805,-500.0,0.00010958,2]
[399519029,1766430641814,-500.0,0.00010958,2]
[399519030,1766430641823,-170.536017,0.00010958,2]
[399519031,1766430641832,-500.0,0.00010958,2]
[399519032,1766430641842,-2626.68,0.00010958,2]
[399519033,1766430641850,-500.0,0.00010958,2]
[399519034,1766430641860,-500.0,0.00010958,2]
[399519035,1766430641869,-500.0,0.00010958,2]
[399519036,1766430641878,-500.0,0.00010958,2]
[399519037,1766430641887,-2998.42,0.00010958,2]
[399519038,1766430641897,-1629.65,0.00010958,2]
[399519039,1766430641907,-500.0,0.00010958,2]
[399519040,1766430641916,-7169.65,0.00010958,2]
[399519041,1766430641926,-1550.8,0.00010958,2]
[399519042,1766430641936,-500.0,0.00010958,2]
[399519043,1766430641945,-500.0,0.00010958,2]
[399519044,1766430641954,-500.0,0.00010958,2]
[399519045,1766430641964,-2829.64,0.00010958,2]
[399519046,1766430641973,-164.124431,0.00010958,2]
[399519047,1766430641982,-500.0,0.00010958,2]
[399519048,1766430641991,-500.0,0.00010958,2]
[399519049,1766430642000,-500.0,0.00010958,2]
[399519050,1766430642010,-500.0,0.00010958,2]
[399519051,1766430642020,-590.18,0.00010958,2]
[399519052,1766430642029,-1050.44,0.00010958,2]
[399519053,1766430642039,-500.0,0.00010958,2]
[399519054,1766430642048,-500.0,0.00010958,2]
[399519055,1766430642057,-947.31,0.00010958,2]
[399519056,1766430642067,-1648.33,0.00010958,2]
[399519057,1766430642075,-2060.77,0.00010958,2]
[399519058,1766430642085,-1009.54,0.00010958,2]
[399519059,1766430642094,-480.0,0.00010958,2]
[399519060,1766430642103,-503.29695049,0.00010958,2]
[399519061,1766430642112,-500.0,0.00010958,2]
[399519062,1766430642121,-500.0,0.00010958,2]
[399519063,1766430642131,-751.74,0.00010958,2]
[399519064,1766430642140,-644.88,0.00010958,2]
[399519065,1766430642150,-721.03,0.00010958,2]
[399519066,1766430642159,-500.0,0.00010958,2]
[399519067,1766430642168,-2168.6,0.00010958,2]
[399519068,1766430642177,-500.0,0.00010958,2]
[399519069,1766430642187,-500.0,0.00010958,2]
[399519070,1766430642197,-500.0,0.00010958,2]
[399519071,1766430642207,-500.0,0.00010958,2]
[399519072,1766430642216,-833.42,0.00010958,2]
[399519073,1766430642225,-500.0,0.00010958,2]
[399519074,1766430642235,-7092.45,0.00010958,2]
[399519075,1766430642244,-1074.82,0.00010958,2]
[399519076,1766430642254,-2958.24,0.00010958,2]
[399519077,1766430642264,-500.0,0.00010958,2]
[399519078,1766430642275,-2487.12,0.00010958,2]
[399519079,1766430642285,-500.0,0.00010958,2]
[399519080,1766430642295,-501.17808005,0.00010958,2]
[399519081,1766430642305,-500.0,0.00010958,2]
[399519082,1766430642314,-500.0,0.00010958,2]
[399519083,1766430642325,-500.0,0.00010958,2]
[399519084,1766430642336,-544.68,0.00010958,2]
[399519085,1766430642346,-500.0,0.00010958,2]
[399519086,1766430642357,-1902.11,0.00010958,2]
[399519087,1766430642366,-500.0,0.00010958,2]
[399519088,1766430642375,-500.0,0.00010958,2]
[399519089,1766430642384,-500.0,0.00010958,2]
[399519090,1766430642393,-500.0,0.00010958,2]
[399519091,1766430642403,-500.0,0.00010958,2]
[399519092,1766430642412,-500.0,0.00010958,2]
[399519093,1766430642421,-1187.4,0.00010958,2]
[399519094,1766430642430,-719.44,0.00010958,2]
[399519095,1766430642440,-1686.4,0.00010958,2]
[399519096,1766430642450,-752.01,0.00010958,2]
[399519097,1766430642459,-617.46,0.00010958,2]
[399519098,1766430642468,-500.0,0.00010958,2]
[399519099,1766430642477,-560.92,0.00010958,2]
[399519100,1766430642487,-500.0,0.00010958,2]
[399519101,1766430642496,-504.38694778,0.00010958,2]
[399519102,1766430642505,-500.0,0.00010958,2]
[399519103,1766430642514,-500.0,0.00010958,2]
[399519104,1766430642524,-500.0,0.00010958,2]
[399519105,1766430642534,-1379.66,0.00010958,2]
[399519106,1766430642544,-500.0,0.00010958,2]
[399519107,1766430642555,-500.0,0.00010958,2]
[399519108,1766430642565,-1042.24,0.00010958,2]
[399519109,1766430642574,-500.0,0.00010958,2]
[399519110,1766430642583,-500.0,0.00010958,2]
[399519111,1766430642593,-500.0,0.00010958,2]
[399519112,1766430642603,-500.0,0.00010958,2]
[399519113,1766430642612,-460.4,0.00010958,2]
[399519114,1766430642622,-500.0,0.00010958,2]
[399519115,1766430642631,-1078.22,0.00010958,2]
[399519116,1766430642641,-501.64600388,0.00010958,2]
[399519118,1766430642650,-1999.21,0.00010958,2]